[Event "*** Titled Tuesday Blitz"]
[Site "Chess.com"]
[Date "2018.09.04"]
[Round "8"]
[White "FMJoseHerrera"]
[Black "gkchesstiger"]
[Result "0-1"]
[WhiteElo "2406"]
[BlackElo "2756"]
[TimeControl "180+2"]
[EndTime "15:25:17 PDT"]
[Termination "gkchesstiger won on time"]

1. Nf3 {[%clk 0:03:01.9]} 1... Nf6 {[%clk 0:02:59.9]} 2. g3 {[%clk 0:03:02.9]}
2... g6 {[%clk 0:03:00.2]} 3. Bg2 {[%clk 0:03:04]} 3... Bg7 {[%clk 0:03:00.8]}
4. d3 {[%clk 0:03:05.2]} 4... d5 {[%clk 0:03:00.4]} 5. c3 {[%clk 0:03:05.5]}
5... O-O {[%clk 0:03:00]} 6. a3 {[%clk 0:03:04.7]} 6... c6 {[%clk 0:02:54.5]} 7.
Bg5 {[%clk 0:03:04.1]} 7... Bg4 {[%clk 0:02:54.1]} 8. Qc1 {[%clk 0:03:04.8]}
8... Nbd7 {[%clk 0:02:53.4]} 9. Bh6 {[%clk 0:03:05.5]} 9... e5 {[%clk
0:02:53.9]} 10. Bxg7 {[%clk 0:03:06.8]} 10... Kxg7 {[%clk 0:02:54]} 11. h3
{[%clk 0:03:07.6]} 11... Bxf3 {[%clk 0:02:53.8]} 12. Bxf3 {[%clk 0:03:08.4]}
12... Re8 {[%clk 0:02:54.7]} 13. Bg2 {[%clk 0:02:56]} 13... a5 {[%clk
0:02:40.5]} 14. Nd2 {[%clk 0:02:53.7]} 14... a4 {[%clk 0:02:40.9]} 15. O-O
{[%clk 0:02:48.3]} 15... Nc5 {[%clk 0:02:40.4]} 16. c4 {[%clk 0:02:48.1]} 16...
d4 {[%clk 0:02:36.1]} 17. Qc2 {[%clk 0:02:42.6]} 17... Qd6 {[%clk 0:02:32.8]}
18. Rab1 {[%clk 0:02:40.6]} 18... Nfd7 {[%clk 0:02:32.4]} 19. b4 {[%clk
0:02:37]} 19... axb3 {[%clk 0:02:33]} 20. Nxb3 {[%clk 0:02:37.3]} 20... Rxa3
{[%clk 0:02:33.4]} 21. Nd2 {[%clk 0:02:32.7]} 21... Rea8 {[%clk 0:02:32.6]} 22.
Rb2 {[%clk 0:02:33.9]} 22... Ra1 {[%clk 0:02:28.5]} 23. Rxa1 {[%clk 0:02:29.4]}
23... Rxa1+ {[%clk 0:02:29.3]} 24. Kh2 {[%clk 0:02:31.3]} 24... Qc7 {[%clk
0:02:27.8]} 25. Nf3 {[%clk 0:02:28.9]} 25... h6 {[%clk 0:02:25.7]} 26. h4 {[%clk
0:02:26.6]} 26... f5 {[%clk 0:02:14.2]} 27. Qd2 {[%clk 0:02:20.9]} 27... Nf6
{[%clk 0:02:11.9]} 28. Bh3 {[%clk 0:02:21.6]} 28... Ng4+ {[%clk 0:02:03.9]} 29.
Kg2 {[%clk 0:02:19.7]} 29... Qd6 {[%clk 0:01:55.5]} 30. Qb4 {[%clk 0:02:19.1]}
30... Nf6 {[%clk 0:01:52.1]} 31. h5 {[%clk 0:02:03]} 31... Nxh5 {[%clk
0:01:48.4]} 32. Nh4 {[%clk 0:02:04]} 32... Kh7 {[%clk 0:01:39.4]} 33. Qb6 {[%clk
0:01:58.4]} 33... Ng7 {[%clk 0:01:38]} 34. Qb4 {[%clk 0:01:38.7]} 34... Qf8
{[%clk 0:01:29.3]} 35. Qb6 {[%clk 0:01:34.6]} 35... Nge6 {[%clk 0:01:29.5]} 36.
Nf3 {[%clk 0:01:13.6]} 36... Qd6 {[%clk 0:01:29]} 37. Nd2 {[%clk 0:01:07.7]}
37... Qc7 {[%clk 0:01:25.6]} 38. Qb4 {[%clk 0:01:07.2]} 38... Qa5 {[%clk
0:01:25.7]} 39. Qxa5 {[%clk 0:01:01.5]} 39... Rxa5 {[%clk 0:01:25.9]} 40. Nf3
{[%clk 0:01:03.4]} 40... e4 {[%clk 0:01:24.5]} 41. dxe4 {[%clk 0:00:52.4]} 41...
fxe4 {[%clk 0:01:25.2]} 42. Ne5 {[%clk 0:00:53.1]} 42... Nd8 {[%clk 0:01:00.8]}
43. f4 {[%clk 0:00:33.9]} 43... Kg7 {[%clk 0:00:59.9]} 44. Rd2 {[%clk
0:00:27.6]} 44... Nde6 {[%clk 0:00:56.4]} 45. Rb2 {[%clk 0:00:28.2]} 45... Ra7
{[%clk 0:00:52.3]} 46. Kf2 {[%clk 0:00:21.3]} 46... h5 {[%clk 0:00:51.6]} 47.
Bg2 {[%clk 0:00:20.8]} 47... Kf6 {[%clk 0:00:51.9]} 48. Ke1 {[%clk 0:00:20.3]}
48... g5 {[%clk 0:00:52.3]} 49. e3 {[%clk 0:00:12.2]} 49... dxe3 {[%clk
0:00:52.5]} 50. Ke2 {[%clk 0:00:12.9]} 50... gxf4 {[%clk 0:00:53.1]} 51. gxf4
{[%clk 0:00:14.3]} 51... Nxf4+ {[%clk 0:00:53.7]} 52. Kxe3 {[%clk 0:00:15.7]}
52... Kxe5 {[%clk 0:00:55]} 53. Bh1 {[%clk 0:00:14.5]} 53... Ra3+ {[%clk
0:00:55.1]} 54. Kd2 {[%clk 0:00:15]} 54... e3+ {[%clk 0:00:56.2]} 55. Kc2 {[%clk
0:00:13.8]} 55... e2 {[%clk 0:00:57.3]} 56. Rb1 {[%clk 0:00:14.7]} 56... Kd4
{[%clk 0:00:56.8]} 57. Bf3 {[%clk 0:00:15.4]} 57... Ra2+ {[%clk 0:00:57.5]} 0-1

[Event "*** Titled Tuesday Blitz"]
[Site "Chess.com"]
[Date "2018.09.04"]
[Round "8"]
[White "aquaticpineapples"]
[Black "Spring199"]
[Result "0-1"]
[WhiteElo "2012"]
[BlackElo "2237"]
[TimeControl "180+2"]
[EndTime "15:25:17 PDT"]
[Termination "Spring199 won by checkmate"]

1. d4 {[%clk 0:03:01.9]} 1... d5 {[%clk 0:02:58.5]} 2. Nf3 {[%clk 0:03:02.8]}
2... Nf6 {[%clk 0:02:58.7]} 3. e3 {[%clk 0:03:03.5]} 3... e6 {[%clk 0:02:57.3]}
4. Bd3 {[%clk 0:03:03.8]} 4... c5 {[%clk 0:02:58.6]} 5. b3 {[%clk 0:03:04.6]}
5... Nc6 {[%clk 0:02:59.9]} 6. a3 {[%clk 0:03:03.5]} 6... Bd6 {[%clk 0:03:00.8]}
7. Bb2 {[%clk 0:03:04.2]} 7... O-O {[%clk 0:03:02.1]} 8. Nbd2 {[%clk 0:03:05]}
8... b6 {[%clk 0:03:01.6]} 9. Ne5 {[%clk 0:03:05.5]} 9... Ne7 {[%clk 0:02:56.9]}
10. O-O {[%clk 0:03:03.9]} 10... Qc7 {[%clk 0:02:51.4]} 11. Qe2 {[%clk
0:03:01.8]} 11... Ng6 {[%clk 0:02:50.4]} 12. f4 {[%clk 0:02:55.3]} 12... b5
{[%clk 0:02:39.1]} 13. Nxg6 {[%clk 0:02:30.8]} 13... hxg6 {[%clk 0:02:36.9]} 14.
Bxb5 {[%clk 0:02:23.4]} 14... cxd4 {[%clk 0:02:24.5]} 15. Bxd4 {[%clk
0:02:24.9]} 15... Qxc2 {[%clk 0:02:24.6]} 16. Rfc1 {[%clk 0:02:21.1]} 16... Qf5
{[%clk 0:02:24.7]} 17. Bd3 {[%clk 0:02:05.7]} 17... Qh5 {[%clk 0:02:21.8]} 18.
Nf3 {[%clk 0:01:47.7]} 18... Ne4 {[%clk 0:02:07.8]} 19. b4 {[%clk 0:01:32.6]}
19... Bb7 {[%clk 0:02:04.7]} 20. b5 {[%clk 0:01:29.9]} 20... f6 {[%clk
0:01:40.5]} 21. a4 {[%clk 0:01:25.8]} 21... g5 {[%clk 0:01:29.2]} 22. fxg5
{[%clk 0:01:25.4]} 22... Nxg5 {[%clk 0:01:29.3]} 23. h3 {[%clk 0:00:59.8]} 23...
e5 {[%clk 0:01:16.6]} 24. Bc5 {[%clk 0:00:52.5]} 24... Bxc5 {[%clk 0:01:08.1]}
25. Rxc5 {[%clk 0:00:54.4]} 25... Nxf3+ {[%clk 0:00:41.2]} 26. Qxf3 {[%clk
0:00:56.3]} 26... Qg5 {[%clk 0:00:38.1]} 27. Rc7 {[%clk 0:00:51.4]} 27... e4
{[%clk 0:00:38.2]} 28. Qf4 {[%clk 0:00:36.9]} 28... Qxf4 {[%clk 0:00:32.1]} 29.
exf4 {[%clk 0:00:38.8]} 29... Bc8 {[%clk 0:00:32.8]} 30. Bc2 {[%clk 0:00:35.5]}
30... f5 {[%clk 0:00:33]} 31. Bb3 {[%clk 0:00:34.6]} 31... Be6 {[%clk
0:00:33.3]} 32. Re7 {[%clk 0:00:29.4]} 32... Bf7 {[%clk 0:00:33.7]} 33. Rxf7
{[%clk 0:00:27.4]} 33... Kxf7 {[%clk 0:00:33.1]} 34. Bxd5+ {[%clk 0:00:28.1]}
34... Kf6 {[%clk 0:00:35]} 35. Bxa8 {[%clk 0:00:28.7]} 35... Rxa8 {[%clk
0:00:36.6]} 36. Rd1 {[%clk 0:00:28.5]} 36... g5 {[%clk 0:00:33.9]} 37. fxg5+
{[%clk 0:00:28]} 37... Kxg5 {[%clk 0:00:34.2]} 38. Kf2 {[%clk 0:00:28.2]} 38...
f4 {[%clk 0:00:34.6]} 39. Rd5+ {[%clk 0:00:27.8]} 39... Kf6 {[%clk 0:00:34.3]}
40. Rd7 {[%clk 0:00:24.8]} 40... a6 {[%clk 0:00:26.4]} 41. b6 {[%clk 0:00:24.9]}
41... Rc8 {[%clk 0:00:26.9]} 42. b7 {[%clk 0:00:20.9]} 42... Rc2+ {[%clk
0:00:26.9]} 43. Ke1 {[%clk 0:00:20.7]} 43... Rb2 {[%clk 0:00:27.7]} 44. a5
{[%clk 0:00:19.4]} 44... Ke5 {[%clk 0:00:27.7]} 45. h4 {[%clk 0:00:17.2]} 45...
e3 {[%clk 0:00:25]} 46. h5 {[%clk 0:00:14.7]} 46... Ke4 {[%clk 0:00:18.5]} 47.
h6 {[%clk 0:00:14]} 47... e2 {[%clk 0:00:19.1]} 48. Re7+ {[%clk 0:00:11.7]}
48... Kd3 {[%clk 0:00:18.8]} 49. h7 {[%clk 0:00:11.5]} 49... Rb1+ {[%clk
0:00:19.2]} 50. Kf2 {[%clk 0:00:12.7]} 50... Rf1# {[%clk 0:00:21]} 0-1

[Event "*** Titled Tuesday Blitz"]
[Site "Chess.com"]
[Date "2018.09.04"]
[Round "8"]
[White "JammyDodger91"]
[Black "Fins0905"]
[Result "1/2-1/2"]
[WhiteElo "2431"]
[BlackElo "2588"]
[TimeControl "180+2"]
[EndTime "15:25:22 PDT"]
[Termination "Game drawn by agreement"]

1. e4 {[%clk 0:03:01.9]} 1... d5 {[%clk 0:03:00.3]} 2. exd5 {[%clk 0:03:02.7]}
2... Qxd5 {[%clk 0:03:02.2]} 3. Nc3 {[%clk 0:03:03.7]} 3... Qd8 {[%clk
0:03:02.7]} 4. d4 {[%clk 0:03:04.6]} 4... Nf6 {[%clk 0:03:04.1]} 5. Nf3 {[%clk
0:03:06.2]} 5... Bg4 {[%clk 0:03:04.8]} 6. h3 {[%clk 0:03:04.7]} 6... Bxf3
{[%clk 0:03:05.4]} 7. Qxf3 {[%clk 0:03:06.6]} 7... c6 {[%clk 0:03:06.8]} 8. Bf4
{[%clk 0:03:06.7]} 8... e6 {[%clk 0:03:06.4]} 9. O-O-O {[%clk 0:03:06.9]} 9...
Bb4 {[%clk 0:03:07.1]} 10. Kb1 {[%clk 0:02:57.7]} 10... Bxc3 {[%clk 0:03:05.2]}
11. Qxc3 {[%clk 0:02:59.6]} 11... Nd5 {[%clk 0:03:06.3]} 12. Qg3 {[%clk
0:03:00.4]} 12... Nxf4 {[%clk 0:03:07.5]} 13. Qxf4 {[%clk 0:03:02.1]} 13... Nd7
{[%clk 0:03:08.8]} 14. g4 {[%clk 0:03:03.2]} 14... Qf6 {[%clk 0:02:56.1]} 15.
Qxf6 {[%clk 0:03:02.1]} 15... Nxf6 {[%clk 0:02:52.9]} 16. Bg2 {[%clk 0:02:54.8]}
16... O-O-O {[%clk 0:02:49]} 17. g5 {[%clk 0:02:47.9]} 17... Nd5 {[%clk
0:02:41.5]} 18. c3 {[%clk 0:02:44.4]} 18... h6 {[%clk 0:02:19.2]} 19. h4 {[%clk
0:02:45.4]} 19... hxg5 {[%clk 0:01:59.2]} 20. hxg5 {[%clk 0:02:47.3]} 20... Kd7
{[%clk 0:01:52.7]} 21. Bf3 {[%clk 0:02:33.9]} 21... Nf4 {[%clk 0:01:46]} 22. Bg4
{[%clk 0:02:27]} 22... Ke7 {[%clk 0:01:42.3]} 23. Kc2 {[%clk 0:02:26.2]} 23...
Rxh1 {[%clk 0:01:37.3]} 24. Rxh1 {[%clk 0:02:26.7]} 24... Rd5 {[%clk 0:01:38.8]}
25. Rh8 {[%clk 0:02:20.7]} 25... Rxg5 {[%clk 0:01:38.3]} 26. Bf3 {[%clk
0:02:22]} 26... Ng6 {[%clk 0:01:06.4]} 27. Rb8 {[%clk 0:02:21.3]} 27... Rf5
{[%clk 0:01:07.1]} 28. Rxb7+ {[%clk 0:02:22.6]} 28... Kd6 {[%clk 0:01:08.3]} 29.
Be4 {[%clk 0:02:20.5]} 29... Rxf2+ {[%clk 0:01:08.6]} 30. Kb3 {[%clk 0:02:21.9]}
30... Nh4 {[%clk 0:00:41.2]} 31. Rxa7 {[%clk 0:02:10.4]} 31... f5 {[%clk
0:00:40.7]} 32. Bd3 {[%clk 0:01:57.8]} 32... g5 {[%clk 0:00:30.6]} 33. a4 {[%clk
0:01:58.5]} 33... g4 {[%clk 0:00:26.7]} 34. Rg7 {[%clk 0:01:59.2]} 34... Nf3
{[%clk 0:00:18.9]} 35. a5 {[%clk 0:01:55.4]} 35... Nd2+ {[%clk 0:00:18.9]} 36.
Ka2 {[%clk 0:01:57]} 36... Rh2 {[%clk 0:00:19.4]} 37. a6 {[%clk 0:01:49.6]}
37... Rh8 {[%clk 0:00:20.2]} 38. a7 {[%clk 0:01:51.1]} 38... Ra8 {[%clk
0:00:20.9]} 39. b4 {[%clk 0:01:39.4]} 39... g3 {[%clk 0:00:20]} 40. Kb2 {[%clk
0:01:33.3]} 40... f4 {[%clk 0:00:21]} 41. b5 {[%clk 0:01:32.4]} 41... cxb5
{[%clk 0:00:19.9]} 42. Bxb5 {[%clk 0:01:33.9]} 42... e5 {[%clk 0:00:11.3]} 43.
dxe5+ {[%clk 0:01:32.9]} 43... Kc5 {[%clk 0:00:07.3]} 44. Bd3 {[%clk 0:01:08.8]}
44... Kd5 {[%clk 0:00:07.1]} 45. Kc2 {[%clk 0:00:59.5]} 45... Nf3 {[%clk
0:00:04.4]} 46. e6 {[%clk 0:00:51.7]} 46... Kxe6 {[%clk 0:00:03.1]} 47. Be4
{[%clk 0:00:52]} 47... Rxa7 {[%clk 0:00:04.6]} 48. Rxa7 {[%clk 0:00:51.9]} 48...
Ng5 {[%clk 0:00:05.8]} 49. Kd3 {[%clk 0:00:33.9]} 49... f3 {[%clk 0:00:03.2]}
50. Bxf3 {[%clk 0:00:16.9]} 50... Nxf3 {[%clk 0:00:04.2]} 51. Rg7 {[%clk
0:00:14.1]} 51... g2 {[%clk 0:00:03]} 52. Rxg2 {[%clk 0:00:14.8]} 52... Ne1+
{[%clk 0:00:04]} 53. Ke4 {[%clk 0:00:16.2]} 53... Nxg2 {[%clk 0:00:05.1]}
1/2-1/2

[Event "*** Titled Tuesday Blitz"]
[Site "Chess.com"]
[Date "2018.09.04"]
[Round "8"]
[White "ddtru"]
[Black "RiskyDecision"]
[Result "0-1"]
[WhiteElo "2260"]
[BlackElo "2426"]
[TimeControl "180+2"]
[EndTime "15:25:24 PDT"]
[Termination "RiskyDecision won by resignation"]

1. d4 {[%clk 0:03:01.9]} 1... Nf6 {[%clk 0:03:00.1]} 2. c4 {[%clk 0:03:01.7]}
2... e6 {[%clk 0:03:01.4]} 3. Nc3 {[%clk 0:03:01.5]} 3... Bb4 {[%clk 0:03:01.4]}
4. e3 {[%clk 0:03:02.2]} 4... O-O {[%clk 0:02:56.6]} 5. Bd3 {[%clk 0:02:55.4]}
5... d5 {[%clk 0:02:54.4]} 6. Ne2 {[%clk 0:02:56.2]} 6... c5 {[%clk 0:02:55]} 7.
cxd5 {[%clk 0:02:48]} 7... cxd4 {[%clk 0:02:54.8]} 8. exd4 {[%clk 0:02:46.2]}
8... Nxd5 {[%clk 0:02:54.1]} 9. O-O {[%clk 0:02:46.8]} 9... Nc6 {[%clk
0:02:49.8]} 10. a3 {[%clk 0:02:42.2]} 10... Bd6 {[%clk 0:02:44.4]} 11. Nxd5
{[%clk 0:02:18.1]} 11... exd5 {[%clk 0:02:44.9]} 12. Bf4 {[%clk 0:02:17.7]}
12... Bg4 {[%clk 0:02:31.6]} 13. f3 {[%clk 0:02:16.7]} 13... Be6 {[%clk
0:02:32]} 14. Bxd6 {[%clk 0:02:08.9]} 14... Qxd6 {[%clk 0:02:32.7]} 15. Qd2
{[%clk 0:02:09.2]} 15... f6 {[%clk 0:02:27]} 16. Rac1 {[%clk 0:02:07]} 16... Bf7
{[%clk 0:02:23.2]} 17. Rc3 {[%clk 0:02:01.1]} 17... Rfe8 {[%clk 0:02:18.5]} 18.
Bb5 {[%clk 0:01:58.9]} 18... Rac8 {[%clk 0:01:58.3]} 19. Rfc1 {[%clk 0:01:57.9]}
19... Re7 {[%clk 0:01:53.8]} 20. Bxc6 {[%clk 0:01:55.7]} 20... Rxc6 {[%clk
0:01:54.4]} 21. Rxc6 {[%clk 0:01:55.5]} 21... bxc6 {[%clk 0:01:55.9]} 22. Qc3
{[%clk 0:01:45.1]} 22... Rxe2 {[%clk 0:01:52.7]} 23. Qxc6 {[%clk 0:01:39.5]}
23... Qf4 {[%clk 0:01:27.8]} 24. Qc8+ {[%clk 0:01:07.5]} 24... Re8 {[%clk
0:01:26.5]} 25. Qc3 {[%clk 0:01:07.8]} 25... h5 {[%clk 0:01:18.4]} 26. g3 {[%clk
0:01:03.1]} 26... Qb8 {[%clk 0:01:05.2]} 27. Kf2 {[%clk 0:00:56.7]} 27... h4
{[%clk 0:01:04.7]} 28. b4 {[%clk 0:00:57.2]} 28... Qb5 {[%clk 0:00:59]} 29. Re1
{[%clk 0:00:55.6]} 29... Rxe1 {[%clk 0:00:35.2]} 30. Kxe1 {[%clk 0:00:49.7]}
30... Qc4 {[%clk 0:00:33.1]} 31. Qd2 {[%clk 0:00:48]} 31... h3 {[%clk
0:00:29.5]} 32. Kf2 {[%clk 0:00:47.3]} 32... Bg6 {[%clk 0:00:25.4]} 33. g4
{[%clk 0:00:48.4]} 33... Qc2 {[%clk 0:00:22.2]} 34. Qxc2 {[%clk 0:00:48.4]}
34... Bxc2 {[%clk 0:00:22.5]} 35. Kg3 {[%clk 0:00:49.5]} 35... Bd1 {[%clk
0:00:22.4]} 36. f4 {[%clk 0:00:48]} 36... Kf7 {[%clk 0:00:20.1]} 37. Kxh3 {[%clk
0:00:48.6]} 37... Ke6 {[%clk 0:00:21.6]} 38. Kg3 {[%clk 0:00:49.1]} 38... Kd6
{[%clk 0:00:23]} 39. h4 {[%clk 0:00:46.8]} 39... Kc6 {[%clk 0:00:24.3]} 40. h5
{[%clk 0:00:39.5]} 40... Kb5 {[%clk 0:00:24.9]} 41. Kh4 {[%clk 0:00:39.7]} 41...
Kc4 {[%clk 0:00:25.3]} 42. g5 {[%clk 0:00:37.5]} 42... fxg5+ {[%clk 0:00:25.7]}
43. fxg5 {[%clk 0:00:32.9]} 43... Kxd4 {[%clk 0:00:23.3]} 44. h6 {[%clk
0:00:34]} 44... gxh6 {[%clk 0:00:16.9]} 45. gxh6 {[%clk 0:00:34.9]} 45... Bc2
{[%clk 0:00:17.2]} 46. Kg3 {[%clk 0:00:34.6]} 46... Ke3 {[%clk 0:00:17.9]} 47.
a4 {[%clk 0:00:34.2]} 47... d4 {[%clk 0:00:17.1]} 48. b5 {[%clk 0:00:35.3]}
48... Be4 {[%clk 0:00:16.8]} 49. a5 {[%clk 0:00:35.7]} 49... d3 {[%clk
0:00:18.1]} 50. b6 {[%clk 0:00:35.9]} 50... axb6 {[%clk 0:00:19.3]} 51. axb6
{[%clk 0:00:35.9]} 51... d2 {[%clk 0:00:20.8]} 52. b7 {[%clk 0:00:37]} 52...
Bxb7 {[%clk 0:00:19.8]} 53. h7 {[%clk 0:00:37.9]} 53... d1=Q {[%clk 0:00:20.3]}
54. h8=Q {[%clk 0:00:36.3]} 54... Qg1+ {[%clk 0:00:20.3]} 55. Kh4 {[%clk
0:00:35.8]} 55... Qh2+ {[%clk 0:00:20.7]} 56. Kg5 {[%clk 0:00:25.9]} 56... Qxh8
{[%clk 0:00:21.7]} 57. Kg4 {[%clk 0:00:25.7]} 57... Qg7+ {[%clk 0:00:21.6]} 58.
Kh3 {[%clk 0:00:26.4]} 58... Kf3 {[%clk 0:00:20.8]} 0-1

[Event "*** Titled Tuesday Blitz"]
[Site "Chess.com"]
[Date "2018.09.04"]
[Round "8"]
[White "alpasya2009"]
[Black "Abund"]
[Result "0-1"]
[WhiteElo "2451"]
[BlackElo "2462"]
[TimeControl "180+2"]
[EndTime "15:25:28 PDT"]
[Termination "Abund won by resignation"]

1. d4 {[%clk 0:03:01.9]} 1... Nf6 {[%clk 0:03:00.8]} 2. c4 {[%clk 0:03:02.9]}
2... e6 {[%clk 0:03:01.6]} 3. Nf3 {[%clk 0:03:03.6]} 3... b6 {[%clk 0:03:01.6]}
4. g3 {[%clk 0:03:04.9]} 4... Ba6 {[%clk 0:03:02.6]} 5. Qa4 {[%clk 0:03:05.4]}
5... Bb7 {[%clk 0:03:02.5]} 6. Bg2 {[%clk 0:03:04.5]} 6... c5 {[%clk 0:03:03.8]}
7. dxc5 {[%clk 0:03:05.2]} 7... bxc5 {[%clk 0:03:05.7]} 8. O-O {[%clk
0:03:06.7]} 8... Be7 {[%clk 0:03:06.6]} 9. Nc3 {[%clk 0:03:06.8]} 9... O-O
{[%clk 0:03:05.8]} 10. Bf4 {[%clk 0:03:08]} 10... Qb6 {[%clk 0:03:03.6]} 11.
Rfd1 {[%clk 0:03:08.8]} 11... d6 {[%clk 0:02:57.7]} 12. Rd2 {[%clk 0:03:09]}
12... h6 {[%clk 0:02:47.4]} 13. Rad1 {[%clk 0:03:08.4]} 13... e5 {[%clk
0:02:47.5]} 14. Be3 {[%clk 0:02:56.9]} 14... Nc6 {[%clk 0:02:28.5]} 15. Ne1
{[%clk 0:02:47.6]} 15... Nd4 {[%clk 0:02:23.7]} 16. Nd5 {[%clk 0:02:05.2]} 16...
Bxd5 {[%clk 0:02:14.1]} 17. Bxd5 {[%clk 0:02:06.7]} 17... Nxd5 {[%clk
0:02:13.1]} 18. cxd5 {[%clk 0:02:08.2]} 18... Nf5 {[%clk 0:02:01.9]} 19. Ng2
{[%clk 0:02:03.2]} 19... Rfb8 {[%clk 0:01:56.1]} 20. Qd7 {[%clk 0:01:54.1]}
20... Nxe3 {[%clk 0:01:52.3]} 21. Nxe3 {[%clk 0:01:54.7]} 21... Bg5 {[%clk
0:01:52.8]} 22. Nc4 {[%clk 0:01:49.9]} 22... Qd8 {[%clk 0:01:53]} 23. Qxd8+
{[%clk 0:01:47.1]} 23... Rxd8 {[%clk 0:01:54]} 24. Rd3 {[%clk 0:01:40.7]} 24...
Rab8 {[%clk 0:01:50.8]} 25. Ra3 {[%clk 0:01:36.5]} 25... Rd7 {[%clk 0:01:50]}
26. Ra6 {[%clk 0:01:33.4]} 26... Be7 {[%clk 0:01:48.3]} 27. e4 {[%clk
0:01:28.2]} 27... Kf8 {[%clk 0:01:44.6]} 28. b3 {[%clk 0:01:27]} 28... Ke8
{[%clk 0:01:43.9]} 29. Kf1 {[%clk 0:01:25.5]} 29... g6 {[%clk 0:01:11.8]} 30.
Ke2 {[%clk 0:01:25]} 30... Kd8 {[%clk 0:00:54.1]} 31. f4 {[%clk 0:01:23.6]}
31... exf4 {[%clk 0:00:40.7]} 32. gxf4 {[%clk 0:01:25.5]} 32... Kc8 {[%clk
0:00:39.8]} 33. Kf3 {[%clk 0:00:48.5]} 33... Kb7 {[%clk 0:00:37.5]} 34. Ra4
{[%clk 0:00:42.7]} 34... Bd8 {[%clk 0:00:37.1]} 35. e5 {[%clk 0:00:35.1]} 35...
Bc7 {[%clk 0:00:34.7]} 36. Ke4 {[%clk 0:00:29.2]} 36... Re8 {[%clk 0:00:33.5]}
37. b4 {[%clk 0:00:23.4]} 37... dxe5 {[%clk 0:00:27.7]} 38. fxe5 {[%clk
0:00:21.4]} 38... Bxe5 {[%clk 0:00:22.3]} 39. bxc5 {[%clk 0:00:13.7]} 39... Bc7+
{[%clk 0:00:07.6]} 40. Kf3 {[%clk 0:00:11.8]} 40... Kc8 {[%clk 0:00:05.3]} 41.
Rxa7 {[%clk 0:00:09.3]} 41... Rde7 {[%clk 0:00:03.9]} 42. Ra8+ {[%clk
0:00:10.3]} 42... Kb7 {[%clk 0:00:04.9]} 43. Rxe8 {[%clk 0:00:11.5]} 43... Rxe8
{[%clk 0:00:06.7]} 44. d6 {[%clk 0:00:08.3]} 44... Bd8 {[%clk 0:00:07.7]} 45.
Nb2 {[%clk 0:00:04.5]} 45... Kc6 {[%clk 0:00:08.4]} 46. Nd3 {[%clk 0:00:05.9]}
46... Bg5 {[%clk 0:00:05.5]} 47. Rb1 {[%clk 0:00:05.2]} 47... Re3+ {[%clk
0:00:05.7]} 48. Kf2 {[%clk 0:00:05.3]} 48... Rxd3 {[%clk 0:00:06.7]} 49. Rc1
{[%clk 0:00:04.4]} 49... Bxc1 {[%clk 0:00:07]} 0-1